{"text_format":"3","workbook":"xlsx","n_sheets":5,"sheets":["7 кл.","8 кл.","9 кл.","10 кл.","11 кл."],"not_rendered":{"external_links":11},"read":"whole","date_system":"1900"}

{"sheet":"7 кл.","index":0,"n_rows":7,"n_cols":11,"rows_kept":7,"merged":[[0,0,0,6]]}
["Предварительный протокол по итогам муниципального этапа ВсОШ/РОШ  по предмету  татарская литература    для учащихся школ с татарским языком обучения                                                                                                                                                                                                                           Лаишевского муниципального района в 2018-2019 учебном году                                                 \n"]
[]
["№ п/п","Муниципалитет","Полное наименование образовательного учреждения (по уставу)","Класс","Дата рождения","Пол","Балл","Максимальный балл","Статус","Фамилия, имя, отчество педагога, подготовившего участника олимпиады","Полное наименование образовательного учреждения (по уставу)"]
[{"$f":"'[1]7 кл.'!A4","v":1},{"$f":"'[1]7 кл.'!B4","v":"Лаишевский"},{"$f":"'[1]7 кл.'!C4","v":"Муниципальное бюджетное общеобразовательное учреждение \"Именьковская средняя общеобразовательная школа\""},7,"2005-08-16","ж",22,42,null,{"$f":"'[2]7 кл.'!J4","v":"Сунгатуллина Сирена Анваровна"},{"$f":"'[2]7 кл.'!K4","v":"Муниципальное бюджетное общеобразовательное учреждение \"Именьковская средняя общеобразовательная школа\""}]
[2,{"$f":"'[3]7 кл.'!B4","v":"Лаишевский"},{"$f":"'[3]7 кл.'!C4","v":"Муниципальное бюджетное общеобразовательное учреждение \"Пелевская средняя общеобразовательная школа\" Лаишевского муниципального района Республики Татарстан"},7,"2005-09-06","м",24,42,null,{"$f":"'[4]7 кл.'!J4","v":"Зайнуллина Зелфия Аделзяновна"},{"$f":"'[4]7 кл.'!K4","v":"Муниципальное бюджетное общеобразовательное учреждение \"Пелевская средняя общеобразовательная школа\" Лаишевского муниципального района Республики Татарстан"}]
[3,{"$f":"'[5]7 кл.'!B4","v":"Лаишевский"},{"$f":"'[5]7 кл.'!C4","v":"Муниципальное бюджетное общеобразовательное учреждение \"Тат.Янтыковская основная общеобразовательная школа\" Лаишевского муниципального района Республики Татарстан"},7,"2005-01-20","ж",21,42,null,{"$f":"'[5]7 кл.'!J4","v":"Габидуллина Флуса Рагиповна"},{"$f":"'[5]7 кл.'!K4","v":"Муниципальное бюджетное общеобразовательное учреждение \"Тат.Янтыковская основная общеобразовательная школа\" Лаишевского муниципального района Республики Татарстан"}]
[4,"Лаишевский","Муниципальное бюджетное общеобразовательное учреждение \"Кирбинская средняя общеобраовательная школа\" Лаишевского муниципального района Республики Татарстан ",7,"2005-09-16","ж",23,42,null,"Закирова Рузиля Минвалиевна",{"$f":"$C$7","v":"Муниципальное бюджетное общеобразовательное учреждение \"Кирбинская средняя общеобраовательная школа\" Лаишевского муниципального района Республики Татарстан "}]

{"sheet":"8 кл.","index":1,"n_rows":8,"n_cols":11,"rows_kept":8,"merged":[[0,0,0,6]]}
["Предварительный протокол по итогам муниципального этапа ВсОШ/РОШ  по предмету  татарская литература    для учащихся школ с татарским языком обучения                                                                                                                                                                                                                           Лаишевского муниципального района в 2018-2019 учебном году                                                 \n"]
[]
["№ п/п","Муниципалитет","Полное наименование образовательного учреждения (по уставу)","Класс","Дата рождения","Пол","Балл","Максимальный балл","Статус","Фамилия, имя, отчество педагога, подготовившего участника олимпиады","Полное наименование образовательного учреждения (по уставу)"]
[{"$f":"'[6]8 кл.'!A4","v":1},{"$f":"'[6]8 кл.'!B4","v":"Лаишевский муниципальный район"},{"$f":"'[6]8 кл.'!C4","v":"МБОУ \"Атабаевская СОШ имени Героя РФ Ахметшина М.Р.\""},8,{"$f":"'[7]8 кл.'!$H$4","v":"2005-03-08"},"ж",40,42,null,{"$f":"'[6]8 кл.'!J4","v":"Хамитова Ландыш Талгатовна"},{"$f":"'[6]8 кл.'!K4","v":"МБОУ \"Атабаевская СОШ имени Героя РФ Ахметшина М.Р.\""}]
[2,{"$f":"'[8]8 кл.'!B4","v":"Лаишевский"},{"$f":"'[8]8 кл.'!C4","v":"Муниципальное бюджетное  общеобразовательное учереждение \"Кирбинская средняя общеобразовательная школа\""},8,"2004-04-08","ж",27,42,null,{"$f":"'[8]8 кл.'!J4","v":"Закирова Рузиля Минвалеевна"},{"$f":"'[8]8 кл.'!K4","v":"Муниципальное бюджетное  общеобразовательное учереждение \"Кирбинская средняя общеобразовательная школа\""}]
[3,{"$f":"'[9]8 кл.'!B4","v":"Лаишевский "},{"$f":"'[9]8 кл.'!C4","v":"Муниципальное бюджетное общеобразовательное учреждение \"Малоелгинская средняя общеобразовательная школа\" "},8,{"$f":"'[9]8 кл.'!$H$4","v":"2004-10-29"},"м",22,42,null,{"$f":"'[10]8 кл.'!J4","v":"Вагизова Рузиля Ахметовна"},{"$f":"'[10]8 кл.'!K4","v":"Муниципальное бюджетное общеобразовательное учреждение \"Малоелгинская средняя общеобразовательная школа\" "}]
[4,{"$f":"'[11]8 кл.'!B4","v":"Лаишевский"},{"$f":"'[11]8 кл.'!C4","v":"Муниципальное бюджетное общеобразовательное учреждение «Державинская основная общеобразовательная школа» Лаишевского муниципального района  Республика Татарстан"},8,"2004-11-02","ж",28,42,null,{"$f":"'[11]8 кл.'!J4","v":"Гибадуллина Фирдавес Сафьяновна"},{"$f":"'[11]8 кл.'!K4","v":"Муниципальное бюджетное общеобразовательное учреждение «Державинская основная общеобразовательная школа» Лаишевского муниципального района Республика Татарстан"}]
[5,{"$f":"'[5]8 кл.'!B4","v":"Лаишевский"},{"$f":"'[5]8 кл.'!C4","v":"Муниципальное бюджетное общеобразовательное учреждение \"Тат.Янтыковская основная общеобразовательная школа\" Лаишевского муниципального района Республики Татарстан"},8,"2004-10-01","ж",22,42,null,{"$f":"'[5]8 кл.'!J4","v":"Насырова Альфия Хамисовна"},{"$f":"'[5]8 кл.'!K4","v":"Муниципальное бюджетное общеобразовательное учреждение \"Тат.Янтыковская основная общеобразовательная школа\" Лаишевского муниципального района Республики Татарстан"}]

{"sheet":"9 кл.","index":2,"n_rows":7,"n_cols":11,"rows_kept":7,"merged":[[0,0,0,6]]}
["Предварительный протокол по итогам муниципального этапа ВсОШ/РОШ  по предмету  татарская литература    для учащихся школ с татарским языком обучения                                                                                                                                                                                                                           Лаишевского муниципального района в 2018-2019 учебном году                                                 \n"]
[]
["№ п/п","Муниципалитет","Полное наименование образовательного учреждения (по уставу)","Класс","Дата рождения","Пол","Балл","Максимальный балл","Статус","Фамилия, имя, отчество педагога, подготовившего участника олимпиады","Полное наименование образовательного учреждения (по уставу)"]
[{"$f":"'[1]9 кл.'!A4","v":1},{"$f":"'[1]9 кл.'!B4","v":"Лаишевский"},{"$f":"'[1]9 кл.'!C4","v":"Муниципальное бюджетное общеобразовательное учреждение \"Именьковская средняя общеобразовательная школа\""},9,"2003-07-07","ж",33,48,null,{"$f":"'[1]9 кл.'!J4","v":"Шаймухаметова Алия Мухаметзяновна"},{"$f":"'[1]9 кл.'!K4","v":"Муниципальное бюджетное общеобразовательное учреждение \"Именьковская средняя общеобразовательная школа\""}]
[2,{"$f":"'[11]9 кл.'!B4","v":"Лаишевский"},{"$f":"'[11]9 кл.'!C4","v":"Муниципальное бюджетное общеобразовательное учреждение «Державинская основная общеобразовательная школа» Лаишевского муниципального района "},9,"2003-08-26","м",37,48,null,{"$f":"'[11]9 кл.'!J4","v":"Гибадуллина Фирдавес Сафьяновна"},{"$f":"'[11]9 кл.'!K4","v":"Муниципальное бюджетное общеобразовательное учреждение «Державинская основная общеобразовательная школа» Лаишевского муниципального района "}]
[3,{"$f":"'[3]9 кл.'!B4","v":"Лаишевский"},{"$f":"'[3]9 кл.'!C4","v":"Муниципальное бюджетное общеобразовательное учреждение \"Пелевская средняя общеобразовательная школа\" Лаишевского муниципального района Республики Татарстан"},9,"2004-01-13","ж",46,48,null,{"$f":"'[3]9 кл.'!J4","v":"Зайнуллина Зелфия Аделзяновна"},{"$f":"'[3]9 кл.'!K4","v":"Муниципальное бюджетное общеобразовательное учреждение \"Пелевская средняя общеобразовательная школа\" Лаишевского муниципального района Республики Татарстан"}]
[4,{"$f":"'[3]9 кл.'!B5","v":"Лаишевский"},{"$f":"'[3]9 кл.'!C5","v":"Муниципальное бюджетное общеобразовательное учреждение \"Пелевская средняя общеобразовательная школа\" Лаишевского муниципального района Республики Татарстан"},9,"2003-10-29","ж",37,48,null,{"$f":"'[3]9 кл.'!J5","v":"Зайнуллина Зелфия Аделзяновна"},{"$f":"'[3]9 кл.'!K5","v":"Муниципальное бюджетное общеобразовательное учреждение \"Пелевская средняя общеобразовательная школа\" Лаишевского муниципального района Республики Татарстан"}]

{"sheet":"10 кл.","index":3,"n_rows":7,"n_cols":11,"rows_kept":7,"merged":[[0,0,0,6]]}
["Предварительный протокол по итогам муниципального этапа ВсОШ/РОШ  по предмету  татарская литература    для учащихся школ с татарским языком обучения                                                                                                                                                                                                                           Лаишевского муниципального района в 2018-2019 учебном году                                                 \n"]
[]
["№ п/п","Муниципалитет","Полное наименование образовательного учреждения (по уставу)","Класс","Дата рождения","Пол","Балл","Максимальный балл","Статус","Фамилия, имя, отчество педагога, подготовившего участника олимпиады","Полное наименование образовательного учреждения (по уставу)"]
[{"$f":"'[6]10 кл.'!A4","v":1},{"$f":"'[6]10 кл.'!B4","v":"Лаишевский муниципальный район"},{"$f":"'[6]10 кл.'!C4","v":"МБОУ \"Атабаевская СОШ имени Героя РФ Ахметшина М.Р.\""},10,{"$f":"$D$4","v":"1900-01-10"},"ж",30,48,null,{"$f":"'[6]10 кл.'!J4","v":"Шарапова Илсояр Давлятовна"},{"$f":"'[6]10 кл.'!K4","v":"МБОУ \"Атабаевская СОШ имени Героя РФ Ахметшина М.Р.\""}]
[2,{"$f":"'[9]10 кл.'!B4","v":"Лаишевский"},{"$f":"'[9]10 кл.'!C4","v":"Муниципальное бюджетное общеобразовательное учреждение \"Малоелгинская средняя общеобразовательная школа\" "},10,{"$f":"'[9]10 кл.'!$H$4","v":"2001-11-12"},"ж",27,48,null,{"$f":"'[9]10 кл.'!J4","v":"Вагизова Рузиля Ахметовна"},{"$f":"'[9]10 кл.'!K4","v":"Муниципальное бюджетное общеобразовательное учреждение \"Малоелгинская средняя общеобразовательная школа\" "}]
[]
[{"$nulls":4},"                                                                "]

{"sheet":"11 кл.","index":4,"n_rows":5,"n_cols":11,"rows_kept":5,"merged":[[0,0,0,6]]}
["Предварительный протокол по итогам муниципального этапа ВсОШ/РОШ  по предмету  татарская литература    для учащихся школ с татарским языком обучения                                                                                                                                                                                                                           Лаишевского муниципального района в 2018-2019 учебном году                                                 \n"]
[]
["№ п/п","Муниципалитет","Полное наименование образовательного учреждения (по уставу)","Класс","Дата рождения","Пол","Балл","Максимальный балл","Статус","Фамилия, имя, отчество педагога, подготовившего участника олимпиады","Полное наименование образовательного учреждения (по уставу)"]
[{"$f":"'[3]11 кл.'!A4","v":1},{"$f":"'[3]11 кл.'!B4","v":"Лаишевский "},{"$f":"'[3]11 кл.'!C4","v":"Муниципальное бюджетное общеобразовательное учреждение \"Пелевская средняя общеобразовательная школа\" Лаишевского муниципального района Республики Татарстан"},{"v":11,"d":"11.00"},{"$f":"$D$4","v":"1900-01-11"},"ж",24,48,null,{"$f":"'[3]11 кл.'!J4","v":"Шагитова Лейсан Равилевна"},{"$f":"'[3]11 кл.'!K4","v":"Муниципальное бюджетное общеобразовательное учреждение \"Пелевская средняя общеобразовательная школа\" Лаишевского муниципального района Республики Татарстан"}]
[{"$f":"'[3]11 кл.'!A5","v":2},{"$f":"'[3]11 кл.'!B5","v":"Лаишевский "},{"$f":"'[3]11 кл.'!C5","v":"Муниципальное бюджетное общеобразовательное учреждение \"Пелевская средняя общеобразовательная школа\" Лаишевского муниципального района Республики Татарстан"},11,{"$f":"'[3]11 кл.'!H5","v":"2002-07-18"},"ж",26,48,null,{"$f":"'[3]11 кл.'!J5","v":"Шагитова Лейсан Равилевна"},{"$f":"'[3]11 кл.'!K5","v":"Муниципальное бюджетное общеобразовательное учреждение \"Пелевская средняя общеобразовательная школа\" Лаишевского муниципального района Республики Татарстан"}]